[Event "December 5 Late 2023"]
[Site "https://www.chess.com"]
[Date "2023.12.05"]
[Round "3"]
[White "Ghasi, Ameet K"]
[Black "Bortnyk, Olexandr"]
[Result "0-1"]
[Board "9"]
[TimeControl "180+1"]
[WhiteFideId "409200"]
[BlackFideId "14120828"]
[WhiteElo "2800"]
[BlackElo "3085"]
[WhiteTeam "ENG"]
[BlackTeam "UKR"]
[WhiteClock "0:00:00"]
[BlackClock "0:00:14"]

1. b3 {[%clk 0:03:00]}  d5 {[%clk 0:03:00]} 2. Bb2 {[%clk 0:03:01]}  Bf5 {[%clk 0:03:00]} 3. g3 {[%clk 0:02:59]}  e6 {[%clk 0:03:01]} 4. Bg2 {[%clk 0:03:00]}  Nf6 {[%clk 0:03:02]} 5. d3 {[%clk 0:03:00]}  h6 {[%clk 0:03:02]} 6. Nd2 {[%clk 0:03:00]}  Be7 {[%clk 0:03:02]} 7. h3 {[%clk 0:02:59]}  Bh7 {[%clk 0:03:01]} 8. e4 {[%clk 0:02:59]}  O-O {[%clk 0:02:59]} 9. Qe2 {[%clk 0:02:59]}  a5 {[%clk 0:02:59]} 10. a3 {[%clk 0:02:59]}  Na6 {[%clk 0:02:57]} 11. Ngf3 {[%clk 0:02:58]}  Nc5 {[%clk 0:02:51]} 12. e5 {[%clk 0:02:57]}  Nfd7 {[%clk 0:02:51]} 13. O-O {[%clk 0:02:57]}  Na6 {[%clk 0:02:34]} 14. Nd4 {[%clk 0:02:53]}  c5 {[%clk 0:02:33]} 15. Nb5 {[%clk 0:02:53]}  Nc7 {[%clk 0:02:30]} 16. a4 {[%clk 0:02:49]}  Nxb5 {[%clk 0:02:17]} 17. axb5 {[%clk 0:02:50]}  Nb6 {[%clk 0:02:17]} 18. Rfd1 {[%clk 0:02:28]}  a4 {[%clk 0:02:17]} 19. c4 {[%clk 0:02:11]}  axb3 {[%clk 0:02:16]} 20. Nxb3 {[%clk 0:02:10]}  Rxa1 {[%clk 0:02:16]} 21. Bxa1 {[%clk 0:02:11]}  Qa8 {[%clk 0:02:16]} 22. cxd5 {[%clk 0:01:55]}  Nxd5 {[%clk 0:02:10]} 23. d4 {[%clk 0:01:53]}  c4 {[%clk 0:02:04]} 24. Nc5 {[%clk 0:01:42]}  Bxc5 {[%clk 0:01:55]} 25. dxc5 {[%clk 0:01:42]}  Bd3 {[%clk 0:01:55]} 26. Qd2 {[%clk 0:01:36]}  Qa4 {[%clk 0:01:53]} 27. b6 {[%clk 0:01:24]}  Rd8 {[%clk 0:01:48]} 28. Bd4 {[%clk 0:01:06]}  Nxb6 {[%clk 0:01:44]} 29. Ra1 {[%clk 0:00:56]}  Qb3 {[%clk 0:01:10]} 30. Qb2 {[%clk 0:00:39]}  Qxb2 {[%clk 0:00:46]} 31. Bxb2 {[%clk 0:00:40]}  Nd5 {[%clk 0:00:46]} 32. f4 {[%clk 0:00:24]}  c3 {[%clk 0:00:45]} 33. Bc1 {[%clk 0:00:24]}  Rc8 {[%clk 0:00:37]} 34. Ra5 {[%clk 0:00:22]}  b6 {[%clk 0:00:33]} 35. cxb6 {[%clk 0:00:20]}  Nxb6 {[%clk 0:00:34]} 36. Kf2 {[%clk 0:00:19]}  Nc4 {[%clk 0:00:34]} 37. Ra8 {[%clk 0:00:13]}  Rxa8 {[%clk 0:00:34]} 38. Bxa8 {[%clk 0:00:14]}  Na5 {[%clk 0:00:34]} 39. Ke3 {[%clk 0:00:09]}  Bf1 {[%clk 0:00:25]} 40. Be4 {[%clk 0:00:05]}  Nb3 {[%clk 0:00:19]} 41. Ba3 {[%clk 0:00:05]}  Nd2 {[%clk 0:00:20]} 42. Bb4 {[%clk 0:00:03]}  Nxe4 {[%clk 0:00:17]} 43. Kxe4 {[%clk 0:00:03]}  c2 {[%clk 0:00:18]} 44. Bd2 {[%clk 0:00:02]}  Bxh3 {[%clk 0:00:19]} 45. Kf3 {[%clk 0:00:02]}  h5 {[%clk 0:00:19]} 46. Ke3 {[%clk 0:00:02]}  Kh7 {[%clk 0:00:20]} 47. Kf3 {[%clk 0:00:02]}  Kg6 {[%clk 0:00:20]} 48. Bc1 {[%clk 0:00:03]}  Kf5 {[%clk 0:00:20]} 49. Bd2 {[%clk 0:00:03]}  Bf1 {[%clk 0:00:18]} 50. Bc1 {[%clk 0:00:03]}  Bb5 {[%clk 0:00:19]} 51. Bd2 {[%clk 0:00:03]}  Bc6+ {[%clk 0:00:20]} 52. Ke3 {[%clk 0:00:03]}  Kg4 {[%clk 0:00:20]} 53. Kf2 {[%clk 0:00:03]}  Kf5 {[%clk 0:00:13]} 54. Ke3 {[%clk 0:00:03]}  g5 {[%clk 0:00:14]} 55. Bc1 {[%clk 0:00:02]}  gxf4+ {[%clk 0:00:13]} 56. gxf4 {[%clk 0:00:03]}  h4 {[%clk 0:00:14]} 57. Kf2 {[%clk 0:00:03]}  h3 {[%clk 0:00:14]} 58. Kg3 {[%clk 0:00:04]}  Bg2 {[%clk 0:00:15]} 59. Bd2 {[%clk 0:00:04]}  Ke4 {[%clk 0:00:15]} 60. Kf2 {[%clk 0:00:04]}  Kd3 {[%clk 0:00:15]} 61. Bc1 {[%clk 0:00:04]}  Kc3 {[%clk 0:00:14]} 62. f5 {[%clk 0:00:03]}  exf5 {[%clk 0:00:14]} 63. Kg3 {[%clk 0:00:03]}  Kb3 {[%clk 0:00:14]} 64. Kf4 {[%clk 0:00:02]}  h2 {[%clk 0:00:14]} 65. Kxf5 {[%clk 0:00:02]}  h1=Q {[%clk 0:00:15]} 66. Kf6 {[%clk 0:00:03]}  Qxc1 {[%clk 0:00:14]} 67. Kxf7 {[%clk 0:00:04]}  Qf4+ {[%clk 0:00:14]} 68. Ke6 {[%clk 0:00:00]}  c1=Q {[%clk 0:00:14]} 0-1

[Event "December 5 Late 2023"]
[Site "https://www.chess.com"]
[Date "2023.12.05"]
[Round "3"]
[White "Oparin, Grigoriy"]
[Black "Budisavljevic, Luka"]
[Result "1-0"]
[Board "11"]
[TimeControl "180+1"]
[WhiteFideId "24125890"]
[BlackFideId "960047"]
[WhiteElo "3056"]
[BlackElo "2783"]
[WhiteTeam "USA"]
[BlackTeam "SRB"]
[WhiteClock "0:00:14"]
[BlackClock "0:00:00"]

1. Nf3 {[%clk 0:03:00]}  c5 {[%clk 0:02:57]} 2. e4 {[%clk 0:03:00]}  e6 {[%clk 0:02:57]} 3. Be2 {[%clk 0:03:01]}  Nc6 {[%clk 0:02:55]} 4. O-O {[%clk 0:03:00]}  d6 {[%clk 0:02:52]} 5. Nc3 {[%clk 0:02:59]}  Nf6 {[%clk 0:02:52]} 6. d4 {[%clk 0:02:59]}  cxd4 {[%clk 0:02:53]} 7. Nxd4 {[%clk 0:03:00]}  Be7 {[%clk 0:02:50]} 8. Nxc6 {[%clk 0:03:00]}  bxc6 {[%clk 0:02:51]} 9. Qd3 {[%clk 0:03:01]}  O-O {[%clk 0:02:49]} 10. Qg3 {[%clk 0:03:01]}  Kh8 {[%clk 0:02:37]} 11. Rd1 {[%clk 0:03:00]}  d5 {[%clk 0:02:34]} 12. b3 {[%clk 0:02:56]}  Bb7 {[%clk 0:02:30]} 13. Bb2 {[%clk 0:02:54]}  Qb8 {[%clk 0:02:30]} 14. Bf3 {[%clk 0:02:33]}  Qxg3 {[%clk 0:02:13]} 15. hxg3 {[%clk 0:02:33]}  Rfd8 {[%clk 0:02:13]} 16. exd5 {[%clk 0:01:52]}  cxd5 {[%clk 0:02:10]} 17. Na4 {[%clk 0:01:51]}  Rab8 {[%clk 0:02:08]} 18. Be5 {[%clk 0:01:46]}  Rbc8 {[%clk 0:02:00]} 19. c4 {[%clk 0:01:46]}  Bc6 {[%clk 0:02:00]} 20. cxd5 {[%clk 0:01:37]}  Nxd5 {[%clk 0:01:51]} 21. Rac1 {[%clk 0:01:36]}  Bg5 {[%clk 0:01:19]} 22. Rc4 {[%clk 0:01:28]}  Ba8 {[%clk 0:00:59]} 23. Bd4 {[%clk 0:01:05]}  Rxc4 {[%clk 0:00:41]} 24. bxc4 {[%clk 0:01:06]}  Nb4 {[%clk 0:00:41]} 25. Bxa8 {[%clk 0:00:54]}  Rxa8 {[%clk 0:00:32]} 26. Bc3 {[%clk 0:00:46]}  Nc6 {[%clk 0:00:20]} 27. Rd7 {[%clk 0:00:45]}  Kg8 {[%clk 0:00:18]} 28. Rc7 {[%clk 0:00:45]}  Nd8 {[%clk 0:00:16]} 29. c5 {[%clk 0:00:44]}  Kf8 {[%clk 0:00:13]} 30. Be5 {[%clk 0:00:33]}  Bf6 {[%clk 0:00:11]} 31. Bd6+ {[%clk 0:00:31]}  Ke8 {[%clk 0:00:12]} 32. c6 {[%clk 0:00:25]}  Rb8 {[%clk 0:00:12]} 33. Kh2 {[%clk 0:00:22]}  Rb5 {[%clk 0:00:11]} 34. Rc8 {[%clk 0:00:19]}  Rd5 {[%clk 0:00:10]} 35. Bf4 {[%clk 0:00:15]}  g5 {[%clk 0:00:10]} 36. Be3 {[%clk 0:00:15]}  Ke7 {[%clk 0:00:03]} 37. c7 {[%clk 0:00:15]}  Nc6 {[%clk 0:00:00]} 38. Ra8 {[%clk 0:00:14]} 1-0

[Event "December 5 Late 2023"]
[Site "https://www.chess.com"]
[Date "2023.12.05"]
[Round "3"]
[White "Bortnyk, Mykola"]
[Black "Korchmar, Vasiliy"]
[Result "0-1"]
[Board "12"]
[TimeControl "180+1"]
[WhiteFideId "14120836"]
[BlackFideId "24131750"]
[WhiteElo "3033"]
[BlackElo "2775"]
[WhiteTeam "UKR"]
[BlackTeam "RUS"]
[WhiteClock "0:00:00"]
[BlackClock "0:00:07"]

1. e4 {[%clk 0:03:00]}  c5 {[%clk 0:03:00]} 2. Nf3 {[%clk 0:03:01]}  d6 {[%clk 0:02:59]} 3. d4 {[%clk 0:03:01]}  cxd4 {[%clk 0:02:59]} 4. Nxd4 {[%clk 0:03:02]}  Nf6 {[%clk 0:02:59]} 5. Nc3 {[%clk 0:03:02]}  Nc6 {[%clk 0:03:00]} 6. Bg5 {[%clk 0:02:58]}  Bd7 {[%clk 0:02:59]} 7. Bc4 {[%clk 0:02:55]}  e6 {[%clk 0:02:56]} 8. Qd2 {[%clk 0:02:46]}  a6 {[%clk 0:02:48]} 9. Bb3 {[%clk 0:02:43]}  Be7 {[%clk 0:02:45]} 10. f4 {[%clk 0:02:38]}  h6 {[%clk 0:02:38]} 11. Bxf6 {[%clk 0:02:35]}  Bxf6 {[%clk 0:02:37]} 12. Nde2 {[%clk 0:02:35]}  Be7 {[%clk 0:02:19]} 13. O-O-O {[%clk 0:02:32]}  b5 {[%clk 0:02:17]} 14. g4 {[%clk 0:02:29]}  Na5 {[%clk 0:02:07]} 15. h4 {[%clk 0:02:13]}  Rc8 {[%clk 0:02:02]} 16. g5 {[%clk 0:02:04]}  b4 {[%clk 0:01:41]} 17. Na4 {[%clk 0:01:42]}  Nxb3+ {[%clk 0:01:41]} 18. axb3 {[%clk 0:01:43]}  Qa5 {[%clk 0:01:41]} 19. Kb1 {[%clk 0:01:30]}  Bxa4 {[%clk 0:01:40]} 20. bxa4 {[%clk 0:01:31]}  Qxa4 {[%clk 0:01:41]} 21. Rh3 {[%clk 0:01:23]}  hxg5 {[%clk 0:01:30]} 22. fxg5 {[%clk 0:01:24]}  Rc5 {[%clk 0:01:17]} 23. b3 {[%clk 0:01:05]}  Qa3 {[%clk 0:00:52]} 24. Qd4 {[%clk 0:01:02]}  Ra5 {[%clk 0:00:41]} 25. Qxg7 {[%clk 0:00:33]}  Qa2+ {[%clk 0:00:40]} 26. Kc1 {[%clk 0:00:34]}  Qa1+ {[%clk 0:00:16]} 27. Qxa1 {[%clk 0:00:31]}  Rxa1+ {[%clk 0:00:17]} 28. Kd2 {[%clk 0:00:29]}  Bxg5+ {[%clk 0:00:17]} 29. Ke1 {[%clk 0:00:20]}  Bxh4+ {[%clk 0:00:17]} 30. Ng3 {[%clk 0:00:21]}  Rxd1+ {[%clk 0:00:13]} 31. Kxd1 {[%clk 0:00:22]}  Ke7 {[%clk 0:00:06]} 32. Ne2 {[%clk 0:00:17]}  Bf6 {[%clk 0:00:05]} 33. Rg3 {[%clk 0:00:15]}  Be5 {[%clk 0:00:03]} 34. Rg4 {[%clk 0:00:15]}  Rh2 {[%clk 0:00:02]} 35. Kd2 {[%clk 0:00:15]}  a5 {[%clk 0:00:02]} 36. Kd3 {[%clk 0:00:15]}  Rh3+ {[%clk 0:00:02]} 37. Kc4 {[%clk 0:00:12]}  Rh2 {[%clk 0:00:01]} 38. Kd3 {[%clk 0:00:13]}  f5 {[%clk 0:00:02]} 39. exf5 {[%clk 0:00:13]}  exf5 {[%clk 0:00:03]} 40. Rg8 {[%clk 0:00:11]}  Ke6 {[%clk 0:00:03]} 41. Ra8 {[%clk 0:00:11]}  Rh3+ {[%clk 0:00:03]} 42. Kd2 {[%clk 0:00:12]}  Bc3+ {[%clk 0:00:04]} 43. Nxc3 {[%clk 0:00:12]}  bxc3+ {[%clk 0:00:02]} 44. Ke2 {[%clk 0:00:13]}  Rh2+ {[%clk 0:00:02]} 45. Ke3 {[%clk 0:00:13]}  Rxc2 {[%clk 0:00:01]} 46. Kd3 {[%clk 0:00:13]}  Rc1 {[%clk 0:00:02]} 47. Rxa5 {[%clk 0:00:13]}  f4 {[%clk 0:00:02]} 48. Ra8 {[%clk 0:00:12]}  Kf5 {[%clk 0:00:02]} 49. b4 {[%clk 0:00:10]}  f3 {[%clk 0:00:02]} 50. b5 {[%clk 0:00:10]}  Kg4 {[%clk 0:00:02]} 51. Rg8+ {[%clk 0:00:10]}  Kh3 {[%clk 0:00:01]} 52. Rf8 {[%clk 0:00:11]}  Kg2 {[%clk 0:00:01]} 53. Rg8+ {[%clk 0:00:11]}  Kf1 {[%clk 0:00:02]} 54. b6 {[%clk 0:00:11]}  Rb1 {[%clk 0:00:01]} 55. Rb8 {[%clk 0:00:11]}  f2 {[%clk 0:00:01]} 56. b7 {[%clk 0:00:11]}  Ke1 {[%clk 0:00:01]} 57. Re8+ {[%clk 0:00:11]}  Kd1 {[%clk 0:00:02]} 58. b8=Q {[%clk 0:00:08]}  Rxb8 {[%clk 0:00:01]} 59. Rxb8 {[%clk 0:00:09]}  c2 {[%clk 0:00:02]} 60. Rf8 {[%clk 0:00:06]}  c1=Q {[%clk 0:00:02]} 61. Rxf2 {[%clk 0:00:07]}  Qb1+ {[%clk 0:00:02]} 62. Kc3 {[%clk 0:00:07]}  Qa1+ {[%clk 0:00:02]} 63. Kb3 {[%clk 0:00:06]}  Qb1+ {[%clk 0:00:02]} 64. Kc3 {[%clk 0:00:07]}  Qa1+ {[%clk 0:00:02]} 65. Kd3 {[%clk 0:00:08]}  Qa3+ {[%clk 0:00:02]} 66. Ke4 {[%clk 0:00:07]}  Qb4+ {[%clk 0:00:03]} 67. Kd3 {[%clk 0:00:07]}  Qb5+ {[%clk 0:00:03]} 68. Ke4 {[%clk 0:00:06]}  Qe5+ {[%clk 0:00:03]} 69. Kd3 {[%clk 0:00:07]}  Qd5+ {[%clk 0:00:03]} 70. Ke3 {[%clk 0:00:06]}  Kc1 {[%clk 0:00:04]} 71. Rf4 {[%clk 0:00:05]}  Qe5+ {[%clk 0:00:04]} 72. Re4 {[%clk 0:00:05]}  Qc3+ {[%clk 0:00:04]} 73. Ke2 {[%clk 0:00:05]}  d5 {[%clk 0:00:04]} 74. Re3 {[%clk 0:00:05]}  Qc4+ {[%clk 0:00:04]} 75. Kf3 {[%clk 0:00:05]}  Qf1+ {[%clk 0:00:04]} 76. Kg3 {[%clk 0:00:04]}  d4 {[%clk 0:00:05]} 77. Re8 {[%clk 0:00:05]}  d3 {[%clk 0:00:04]} 78. Rc8+ {[%clk 0:00:05]}  Kd2 {[%clk 0:00:05]} 79. Rd8 {[%clk 0:00:06]}  Qe1+ {[%clk 0:00:05]} 80. Kf3 {[%clk 0:00:07]}  Qe2+ {[%clk 0:00:05]} 81. Kg3 {[%clk 0:00:07]}  Qe3+ {[%clk 0:00:06]} 82. Kg2 {[%clk 0:00:08]}  Qe4+ {[%clk 0:00:06]} 83. Kf1 {[%clk 0:00:07]}  Qf4+ {[%clk 0:00:06]} 84. Kg2 {[%clk 0:00:08]}  Qg5+ {[%clk 0:00:06]} 85. Kf3 {[%clk 0:00:00]}  Qxd8 {[%clk 0:00:07]} 0-1

[Event "December 5 Late 2023"]
[Site "https://www.chess.com"]
[Date "2023.12.05"]
[Round "3"]
[White "Arjun Kalyan"]
[Black "Sarana, Alexey"]
[Result "1/2-1/2"]
[Board "14"]
[TimeControl "180+1"]
[WhiteFideId "35018701"]
[BlackFideId "24133795"]
[WhiteElo "2752"]
[BlackElo "3005"]
[WhiteTeam "IND"]
[BlackTeam "SRB"]
[WhiteClock "0:00:30"]
[BlackClock "0:00:18"]

1. e4 {[%clk 0:03:00]}  c5 {[%clk 0:02:57]} 2. Nf3 {[%clk 0:03:01]}  d6 {[%clk 0:02:58]} 3. Bb5+ {[%clk 0:03:00]}  Bd7 {[%clk 0:02:57]} 4. Bxd7+ {[%clk 0:02:59]}  Nxd7 {[%clk 0:02:58]} 5. O-O {[%clk 0:02:59]}  e6 {[%clk 0:02:58]} 6. d4 {[%clk 0:02:58]}  cxd4 {[%clk 0:02:58]} 7. Nxd4 {[%clk 0:02:58]}  Rc8 {[%clk 0:02:57]} 8. Qe2 {[%clk 0:02:47]}  Qb6 {[%clk 0:02:48]} 9. Nf3 {[%clk 0:02:43]}  Ngf6 {[%clk 0:02:47]} 10. c4 {[%clk 0:02:43]}  Qc6 {[%clk 0:02:47]} 11. Nbd2 {[%clk 0:02:42]}  g6 {[%clk 0:02:35]} 12. b3 {[%clk 0:02:42]}  Bg7 {[%clk 0:02:36]} 13. Bb2 {[%clk 0:02:42]}  O-O {[%clk 0:02:36]} 14. Rad1 {[%clk 0:02:42]}  Rfd8 {[%clk 0:02:34]} 15. h3 {[%clk 0:02:41]}  a6 {[%clk 0:02:34]} 16. e5 {[%clk 0:02:36]}  Nh5 {[%clk 0:02:28]} 17. Qe3 {[%clk 0:02:22]}  dxe5 {[%clk 0:01:55]} 18. Nxe5 {[%clk 0:02:20]}  Nxe5 {[%clk 0:01:55]} 19. Bxe5 {[%clk 0:02:21]}  Bxe5 {[%clk 0:01:55]} 20. Qxe5 {[%clk 0:02:21]}  f6 {[%clk 0:01:56]} 21. Qe3 {[%clk 0:02:20]}  e5 {[%clk 0:01:56]} 22. Ne4 {[%clk 0:02:18]}  Nf4 {[%clk 0:01:57]} 23. g3 {[%clk 0:02:11]}  Nh5 {[%clk 0:01:42]} 24. Rd5 {[%clk 0:02:00]}  Rxd5 {[%clk 0:01:11]} 25. cxd5 {[%clk 0:02:01]}  Qxd5 {[%clk 0:01:10]} 26. g4 {[%clk 0:02:01]}  f5 {[%clk 0:01:11]} 27. gxh5 {[%clk 0:01:35]}  Qxe4 {[%clk 0:01:02]} 28. Qxe4 {[%clk 0:01:35]}  fxe4 {[%clk 0:01:03]} 29. hxg6 {[%clk 0:01:36]}  hxg6 {[%clk 0:01:04]} 30. Re1 {[%clk 0:01:36]}  Kf7 {[%clk 0:00:56]} 31. Rxe4 {[%clk 0:01:36]}  Kf6 {[%clk 0:00:56]} 32. Rb4 {[%clk 0:01:36]}  b5 {[%clk 0:00:51]} 33. a4 {[%clk 0:01:36]}  Rc5 {[%clk 0:00:49]} 34. axb5 {[%clk 0:01:36]}  axb5 {[%clk 0:00:44]} 35. Kg2 {[%clk 0:01:35]}  Kf5 {[%clk 0:00:44]} 36. f3 {[%clk 0:01:27]}  Rd5 {[%clk 0:00:43]} 37. Kg3 {[%clk 0:01:27]}  Rc5 {[%clk 0:00:41]} 38. h4 {[%clk 0:01:27]}  Rd5 {[%clk 0:00:42]} 39. Kg2 {[%clk 0:01:22]}  Kf6 {[%clk 0:00:36]} 40. Kg3 {[%clk 0:01:22]}  Ke6 {[%clk 0:00:37]} 41. Rg4 {[%clk 0:01:18]}  Kf7 {[%clk 0:00:34]} 42. Rb4 {[%clk 0:01:17]}  Kg7 {[%clk 0:00:28]} 43. f4 {[%clk 0:01:12]}  Kf6 {[%clk 0:00:23]} 44. Kg4 {[%clk 0:01:09]}  Rd4 {[%clk 0:00:19]} 45. Rxb5 {[%clk 0:01:09]}  Rxf4+ {[%clk 0:00:19]} 46. Kg3 {[%clk 0:01:10]}  Rd4 {[%clk 0:00:19]} 47. Rb8 {[%clk 0:01:09]}  Rd3+ {[%clk 0:00:19]} 48. Kg4 {[%clk 0:01:08]}  Rd4+ {[%clk 0:00:20]} 49. Kg3 {[%clk 0:01:08]}  Kf5 {[%clk 0:00:21]} 50. b4 {[%clk 0:01:02]}  Rd3+ {[%clk 0:00:21]} 51. Kf2 {[%clk 0:01:01]}  Kg4 {[%clk 0:00:21]} 52. b5 {[%clk 0:01:02]}  Kxh4 {[%clk 0:00:18]} 53. b6 {[%clk 0:01:02]}  Kg4 {[%clk 0:00:14]} 54. b7 {[%clk 0:01:02]}  Rf3+ {[%clk 0:00:14]} 55. Kg2 {[%clk 0:00:54]}  Rf7 {[%clk 0:00:11]} 56. Re8 {[%clk 0:00:45]}  Rxb7 {[%clk 0:00:11]} 57. Rxe5 {[%clk 0:00:45]}  Rb2+ {[%clk 0:00:12]} 58. Kg1 {[%clk 0:00:46]}  Kf3 {[%clk 0:00:11]} 59. Rg5 {[%clk 0:00:40]}  Rb6 {[%clk 0:00:11]} 60. Ra5 {[%clk 0:00:37]}  Rb4 {[%clk 0:00:09]} 61. Ra3+ {[%clk 0:00:36]}  Kg4 {[%clk 0:00:09]} 62. Rc3 {[%clk 0:00:34]}  Rb2 {[%clk 0:00:08]} 63. Rd3 {[%clk 0:00:34]}  g5 {[%clk 0:00:08]} 64. Rc3 {[%clk 0:00:34]}  Re2 {[%clk 0:00:09]} 65. Rb3 {[%clk 0:00:31]}  Kf4 {[%clk 0:00:09]} 66. Ra3 {[%clk 0:00:31]}  Re3 {[%clk 0:00:10]} 67. Rxe3 {[%clk 0:00:26]}  Kxe3 {[%clk 0:00:10]} 68. Kg2 {[%clk 0:00:26]}  Kf4 {[%clk 0:00:11]} 69. Kf2 {[%clk 0:00:27]}  Kg4 {[%clk 0:00:12]} 70. Kg2 {[%clk 0:00:27]}  Kh4 {[%clk 0:00:12]} 71. Kh2 {[%clk 0:00:28]}  g4 {[%clk 0:00:13]} 72. Kg2 {[%clk 0:00:28]}  g3 {[%clk 0:00:14]} 73. Kg1 {[%clk 0:00:28]}  Kg5 {[%clk 0:00:15]} 74. Kg2 {[%clk 0:00:29]}  Kg4 {[%clk 0:00:15]} 75. Kg1 {[%clk 0:00:29]}  Kf3 {[%clk 0:00:16]} 76. Kf1 {[%clk 0:00:30]}  g2+ {[%clk 0:00:17]} 77. Kg1 {[%clk 0:00:30]}  Ke2 {[%clk 0:00:18]} 78. Kxg2 {[%clk 0:00:30]} 1/2-1/2

[Event "December 5 Late 2023"]
[Site "https://www.chess.com"]
[Date "2023.12.05"]
[Round "3"]
[White "Sattarov, Bobir"]
[Black "Xiong, Jeffery"]
[Result "0-1"]
[Board "16"]
[TimeControl "180+1"]
[WhiteFideId "14203081"]
[BlackFideId "2047640"]
[WhiteElo "2730"]
[BlackElo "3003"]
[WhiteTeam "UZB"]
[BlackTeam "USA"]
[WhiteClock "0:00:00"]
[BlackClock "0:01:16"]

1. e4 {[%clk 0:03:00]}  c5 {[%clk 0:02:59]} 2. Nc3 {[%clk 0:02:59]}  Nc6 {[%clk 0:02:58]} 3. Nge2 {[%clk 0:02:59]}  e6 {[%clk 0:02:52]} 4. d4 {[%clk 0:02:55]}  cxd4 {[%clk 0:02:53]} 5. Nxd4 {[%clk 0:02:56]}  a6 {[%clk 0:02:53]} 6. Be3 {[%clk 0:02:42]}  Nf6 {[%clk 0:02:52]} 7. Be2 {[%clk 0:02:42]}  Bb4 {[%clk 0:02:43]} 8. O-O {[%clk 0:02:32]}  Bxc3 {[%clk 0:02:42]} 9. bxc3 {[%clk 0:02:25]}  Nxe4 {[%clk 0:02:42]} 10. Nxc6 {[%clk 0:02:21]}  bxc6 {[%clk 0:02:43]} 11. Bd3 {[%clk 0:02:20]}  Nf6 {[%clk 0:02:19]} 12. Qf3 {[%clk 0:02:03]}  O-O {[%clk 0:02:14]} 13. Qg3 {[%clk 0:01:55]}  d6 {[%clk 0:01:33]} 14. f4 {[%clk 0:01:38]}  Nd5 {[%clk 0:01:30]} 15. Bd2 {[%clk 0:01:30]}  f5 {[%clk 0:01:29]} 16. c4 {[%clk 0:01:26]}  Qb6+ {[%clk 0:01:28]} 17. Kh1 {[%clk 0:01:26]}  Nf6 {[%clk 0:01:27]} 18. Rab1 {[%clk 0:01:24]}  Qa7 {[%clk 0:01:26]} 19. Bc3 {[%clk 0:01:13]}  c5 {[%clk 0:01:26]} 20. Rfe1 {[%clk 0:01:09]}  Qe7 {[%clk 0:01:25]} 21. Bxf5 {[%clk 0:01:00]}  Qf7 {[%clk 0:01:23]} 22. Bd3 {[%clk 0:00:57]}  Nh5 {[%clk 0:01:22]} 23. Qf3 {[%clk 0:00:53]}  Ra7 {[%clk 0:01:22]} 24. Rb6 {[%clk 0:00:40]}  Nxf4 {[%clk 0:01:17]} 25. Rxd6 {[%clk 0:00:39]}  Bb7 {[%clk 0:01:17]} 26. Be4 {[%clk 0:00:37]}  Bxe4 {[%clk 0:01:17]} 27. Qxe4 {[%clk 0:00:00]}  Nd5 {[%clk 0:01:16]} 0-1